[Event "2nd Serbian League-Vojvodina 2023"]
[Site "Novi Sad"]
[Date "2023.11.08"]
[Round "10.20"]
[White "Mushini Ajay"]
[Black "Indjic, Dusan"]
[Result "1-0"]
[ECO "B57"]
[WhiteElo "2301"]
[BlackElo "2304"]
[Annotator "RC"]
[PlyCount "141"]
[EventDate "2023.10.22"]
[EventType "team-tourn"]
[EventCountry "SRB"]
[SourceTitle "playchess.com"]
[Source "ChessBase"]
[SourceQuality "1"]
[TimeControl "40/5400+30:1800+30"]

1. e4 {[%emt 1:31:00]} c5 {[%emt 1:31:00]} 2. Nf3 {[%emt 0:00:30]} Nc6 {[%emt 0:00:30]} 3. d4 {[%emt 0:00:30]} cxd4 {[%emt 0:00:30]} 4. Nxd4 {[%emt 0:00:30]} Nf6 {[%emt 0:00:30]} 5. Nc3 {[%emt 0:00:30]} d6 {[%emt 0:00:30]} 6. Bc4 {[%emt 0:00:30]} Qb6 {[%emt 0:00:30]} 7. Nb3 {[%emt 0:00:30]} e6 {[%emt 0:00:30]} 8. Be3 {[%emt 0:00:30]} Qc7 {[%emt 0:00:30]} 9. Be2 {[%emt 0:00:30]} Be7 {[%emt 0:00:30]} 10. Qd2 {[%emt 0:00:30]} O-O {[%emt 0:00:30]} 11. O-O-O {[%emt 0:00:30]} a6 {[%emt 0:00:30]} 12. Bg5 {[%emt 0:00:30]} Rd8 {[%emt 0:00:30]} 13. Kb1 {[%emt 0:00:30]} b5 {[%emt 0:00:30]} 14. a3 {[%emt 0:00:30]} Bb7 {[%emt 0:00:30]} 15. h4 {[%emt 0:00:30]} Ne5 {[%emt 0:00:30]} 16. Qe3 {[%emt 0:00:30]} Nc4 {[%emt 0:00:30]} 17. Bxc4 {[%emt 0:00:30]} bxc4 {[%emt 0:00:30]} 18. Nd4 {[%emt 0:00:30]} Rab8 {[%emt 0:00:30]} 19. Ka1 {[%emt 0:00:30]} Ba8 {[%emt 0:00:30]} 20. f3 {[%emt 0:00:30]} Qb6 {[%emt 0:00:30]} 21. Qc1 {[%emt 0:00:30]} Qa5 {[%emt 0:00:30]} 22. Qd2 {[%emt 0:00:30]} Qb6 {[%emt 0:00:30]} 23. Rb1 {[%emt 0:00:30]} Rd7 {[%emt 0:00:30]} 24. Be3 {[%emt 0:00:30]} Qd8 {[%emt 0:00:30]} 25. g4 {[%emt 0:00:30]} Bf8 {[%emt 0:00:30]} 26. Bg5 {[%emt 0:00:30]} Be7 {[%emt 0:00:30]} 27. Rhd1 {[%emt 0:00:30]} d5 {[%emt 0:00:30]} 28. e5 {[%emt 0:00:30]} Ne8 {[%emt 0:00:30]} 29. Bxe7 {[%emt 0:00:30]} Qxe7 {[%emt 0:00:30]} 30. h5 {[%emt 0:00:30]} Ra7 {[%emt 0:00:30]} 31. g5 {[%emt 0:00:30]} Nc7 {[%emt 0:00:30]} 32. Nce2 {[%emt 0:00:30]} Nb5 {[%emt 0:00:30]} 33. c3 {[%emt 0:00:30]} g6 {[%emt 0:00:30]} 34. Rh1 {[%emt 0:00:30]} Rc8 {[%emt 0:00:30]} 35. f4 {[%emt 0:00:30]} Bc6 {[%emt 0:00:30]} 36. Nxc6 {[%emt 0:00:30]} Rxc6 {[%emt 0:00:30]} 37. hxg6 {[%emt 0:00:30]} fxg6 {[%emt 0:00:30]} 38. Rh2 {[%emt 0:00:30]} Qf8 {[%emt 0:00:30]} 39. Rbh1 {[%emt 0:00:30]} Rg7 {[%emt 0:00:30]} 40. Rh6 {[%emt 0:00:30]} Rb6 {[%emt 0:00:30]} 41. a4 {[%emt 0:30:30]} Na7 {[%emt 0:30:30]} 42. Nd4 {[%emt 0:00:30]} Qe8 {[%emt 0:00:30]} 43. f5 {[%emt 0:00:30]} Qxa4+ {[%emt 0:00:30]} 44. Kb1 {[%emt 0:00:30]} Rgb7 {[%emt 0:00:30]} 45. fxg6 {[%emt 0:00:30]} Nb5 {[%emt 0:00:30]} 46. gxh7+ {[%emt 0:00:30]} Kh8 {[%emt 0:00:30]} 47. Rg6 {[%emt 0:00:30]} Rxh7 {[%emt 0:00:30]} 48. Rxh7+ {[%emt 0:00:30]} Kxh7 {[%emt 0:00:30]} 49. Rh6+ {[%emt 0:00:30]} Kg8 {[%emt 0:00:30]} 50. g6 {[%emt 0:00:30]} Nxc3+ {[%emt 0:00:30]} 51. Qxc3 {[%emt 0:00:30]} Qd1+ {[%emt 0:00:30]} 52. Ka2 {[%emt 0:00:30]} Kg7 {[%emt 0:00:30]} 53. Rh7+ {[%emt 0:00:30]} Kxg6 {[%emt 0:00:30]} 54. Rh3 {[%emt 0:00:30]} Qa4+ {[%emt 0:00:30]} 55. Qa3 {[%emt 0:00:30]} Qxa3+ {[%emt 0:00:30]} 56. Kxa3 {[%emt 0:00:30]} Kf7 {[%emt 0:00:30]} 57. Rh7+ {[%emt 0:00:30]} Kg6 {[%emt 0:00:30]} 58. Re7 {[%emt 0:00:30]} Kg5 {[%emt 0:00:30]} 59. Rf7 {[%emt 0:00:30]} Kg4 {[%emt 0:00:30]} 60. Rf6 {[%emt 0:00:30]} a5 {[%emt 0:00:30]} 61. Ka2 {[%emt 0:00:30]} Rb8 {[%emt 0:00:30]} 62. Nxe6 {[%emt 0:00:30]} Re8 {[%emt 0:00:30]} 63. Kb1 {[%emt 0:00:30]} d4 {[%emt 0:00:30]} 64. Nxd4 {[%emt 0:00:30]} Rxe5 {[%emt 0:00:30]} 65. Rc6 {[%emt 0:00:30]} Rd5 {[%emt 0:00:30]} 66. Rxc4 {[%emt 0:00:30]} Kf4 67. Nb3+ {[%emt 0:00:30]} Ke3 {[%emt 0:01:00]} 68. Rc5 {[%emt 0:00:30]} Rd1+ {[%emt 0:00:30]} 69. Kc2 {[%emt 0:00:30]} Rh1 {[%emt 0:00:30]} 70. Rc3+ {[%emt 0:00:30]} Ke4 {[%emt 0:00:30]} 71. Nxa5 {[%emt 0:00:30]} 1-0

[Event "2nd Serbian League-Vojvodina 2023"]
[Site "Novi Sad"]
[Date "2023.11.08"]
[Round "10.21"]
[White "Mijatovic, Dusan"]
[Black "Jotic, Vladimir"]
[Result "1-0"]
[ECO "B15"]
[WhiteElo "2139"]
[BlackElo "2280"]
[Annotator "RC"]
[PlyCount "107"]
[EventDate "2023.10.22"]
[EventType "team-tourn"]
[EventCountry "SRB"]
[SourceTitle "playchess.com"]
[Source "ChessBase"]
[SourceQuality "1"]
[TimeControl "40/5400+30:1800+30"]

1. e4 {[%emt 0:00:02]} c6 {[%emt 0:01:53]} 2. Nf3 {[%emt 0:00:13]} g6 {[%emt 0:00:16]} 3. d4 {[%emt 0:00:07]} d5 {[%emt 0:00:45]} 4. Nc3 {[%emt 0:00:08]} Bg7 {[%emt 0:00:25]} 5. h3 {[%emt 0:00:09]} Nh6 {[%emt 0:02:35]} 6. Bd3 {[%emt 0:01:37]} dxe4 {[%emt 0:10:37]} 7. Nxe4 {[%emt 0:01:43]} Nf5 {[%emt 0:00:27]} 8. c3 {[%emt 0:00:27]} Nd6 {[%emt 0:00:30]} 9. Bf4 {[%emt 0:01:58]} Nxe4 {[%emt 0:01:19]} 10. Bxe4 {[%emt 0:00:03]} Nd7 {[%emt 0:00:14]} 11. Qd2 {[%emt 0:03:31]} O-O {[%emt 1:16:59]} 12. Bh6 {[%emt 1:26:32]} c5 {[%emt 0:00:00]} 13. Bxg7 {[%emt 0:00:00]} Kxg7 {[%emt 0:00:00]} 14. O-O {[%emt 0:00:00]} Nf6 {[%emt 0:00:00]} 15. Bc2 {[%emt 0:00:00]} cxd4 {[%emt 0:00:00]} 16. Qxd4 {[%emt 0:02:00]} Qxd4 {[%emt 0:00:00]} 17. Nxd4 {[%emt 0:00:30]} e5 {[%emt 0:00:00]} 18. Nf3 {[%emt 0:00:00]} Nd7 {[%emt 0:00:00]} 19. Rfe1 {[%emt 0:01:00]} f6 {[%emt 0:04:00]} 20. Rad1 {[%emt 0:00:00]} Nb6 {[%emt 0:00:00]} 21. Bb3 {[%emt 0:00:00]} Bd7 {[%emt 0:00:00]} 22. Rd6 {[%emt 0:00:00]} Bc6 {[%emt 0:00:00]} 23. Red1 {[%emt 0:02:00]} Rae8 {[%emt 0:02:00]} 24. Ne1 {[%emt 0:00:30]} a5 {[%emt 0:00:00]} 25. a3 {[%emt 0:00:30]} Nc8 {[%emt 0:00:00]} 26. R6d2 {[%emt 0:00:00]} Ne7 {[%emt 0:01:30]} 27. Nc2 {[%emt 0:01:00]} Nf5 {[%emt 0:00:30]} 28. Bd5 {[%emt 0:00:30]} Rd8 {[%emt 0:00:30]} 29. Ne3 {[%emt 0:00:00]} Ne7 {[%emt 0:00:00]} 30. Bxc6 {[%emt 0:01:00]} Rxd2 {[%emt 0:00:00]} 31. Rxd2 {[%emt 0:00:00]} Nxc6 {[%emt 0:00:00]} 32. Nc4 {[%emt 0:01:00]} b5 {[%emt 0:02:00]} 33. Rd7+ {[%emt 0:00:00]} Kh6 {[%emt 0:00:00]} 34. Nd6 Rb8 {[%emt 0:01:00]} 35. g4 {[%emt 0:01:30]} Kg5 {[%emt 0:00:30]} 36. Ne4+ {[%emt 0:00:00]} Kf4 {[%emt 0:00:00]} 37. Nxf6 {[%emt 0:01:00]} e4 {[%emt 0:01:00]} 38. Kg2 {[%emt 0:00:00]} Ne5 39. Rd4 {[%emt 0:01:00]} Nc4 {[%emt 0:01:00]} 40. Rxe4+ {[%emt 0:00:00]} Kg5 {[%emt 0:00:30]} 41. Nxh7+ {[%emt 0:19:03]} Kh6 {[%emt 0:30:30]} 42. Nf6 {[%emt 0:00:25]} Nxb2 {[%emt 0:00:30]} 43. Re7 {[%emt 0:12:32]} g5 {[%emt 0:00:30]} 44. Rc7 {[%emt 0:00:00]} a4 {[%emt 0:00:00]} 45. Ne4 Nc4 {[%emt 0:01:00]} 46. Rc6+ {[%emt 0:01:30]} Kg7 {[%emt 0:00:00]} 47. Nxg5 {[%emt 0:00:00]} Nxa3 48. Ne6+ {[%emt 0:00:00]} Kf7 {[%emt 0:00:00]} 49. Nd4 Nb1 {[%emt 0:02:00]} 50. g5 {[%emt 0:02:00]} a3 {[%emt 0:00:30]} 51. g6+ {[%emt 0:00:00]} Kg8 {[%emt 0:00:30]} 52. Ra6 {[%emt 0:00:00]} Nxc3 53. Nf5 {[%emt 0:01:30]} b4 {[%emt 0:01:00]} 54. Ra7 {[%emt 0:00:30]} 1-0

[Event "2nd Serbian League-Vojvodina 2023"]
[Site "Novi Sad"]
[Date "2023.11.08"]
[Round "10.22"]
[White "Dekic, Josip"]
[Black "Mijatovic, Dejan"]
[Result "1/2-1/2"]
[ECO "B17"]
[WhiteElo "2221"]
[BlackElo "2185"]
[Annotator "RC"]
[PlyCount "137"]
[EventDate "2023.10.22"]
[EventType "team-tourn"]
[EventCountry "SRB"]
[SourceTitle "playchess.com"]
[Source "ChessBase"]
[SourceQuality "1"]
[TimeControl "40/5400+30:1800+30"]

1. e4 {[%emt 1:31:00]} c6 {[%emt 1:31:00]} 2. Nc3 {[%emt 0:00:30]} d5 {[%emt 0:00:30]} 3. Nf3 {[%emt 0:00:30]} dxe4 {[%emt 0:00:30]} 4. Nxe4 {[%emt 0:00:30]} Nd7 {[%emt 0:00:30]} 5. Bc4 {[%emt 0:00:30]} e6 {[%emt 0:00:30]} 6. d4 {[%emt 0:00:30]} Ngf6 {[%emt 0:00:30]} 7. Ng3 {[%emt 0:00:30]} Be7 {[%emt 0:00:30]} 8. O-O {[%emt 0:00:30]} O-O {[%emt 0:00:30]} 9. Qe2 {[%emt 0:00:30]} Nb6 {[%emt 0:00:30]} 10. Bb3 {[%emt 0:00:30]} c5 {[%emt 0:00:30]} 11. c3 {[%emt 0:00:30]} cxd4 {[%emt 0:00:30]} 12. Nxd4 {[%emt 0:00:30]} a6 {[%emt 0:00:30]} 13. Bg5 {[%emt 0:00:30]} h6 {[%emt 0:00:30]} 14. Bd2 {[%emt 0:00:30]} Re8 {[%emt 0:00:30]} 15. Rad1 {[%emt 0:00:30]} Qc7 {[%emt 0:00:30]} 16. Bc1 {[%emt 0:00:30]} Bd7 {[%emt 0:00:30]} 17. Ne4 {[%emt 0:00:30]} e5 {[%emt 0:00:30]} 18. Nxf6+ {[%emt 0:00:30]} Bxf6 {[%emt 0:00:30]} 19. Nc2 {[%emt 0:00:30]} Bb5 {[%emt 0:00:30]} 20. c4 {[%emt 0:00:30]} Bxc4 21. Bxc4 Qxc4 22. Qxc4 Nxc4 23. b3 {[%emt 0:01:30]} Na5 {[%emt 0:02:00]} 24. Nb4 {[%emt 0:00:30]} Rad8 {[%emt 0:00:30]} 25. Nd5 {[%emt 0:00:30]} Bg5 {[%emt 0:00:30]} 26. Be3 {[%emt 0:00:30]} Bxe3 {[%emt 0:00:30]} 27. fxe3 {[%emt 0:00:30]} Nc6 {[%emt 0:00:30]} 28. b4 {[%emt 0:00:30]} e4 {[%emt 0:00:30]} 29. a3 {[%emt 0:00:30]} Ne5 {[%emt 0:00:30]} 30. Rd4 {[%emt 0:00:30]} Nd3 {[%emt 0:00:30]} 31. Ne7+ {[%emt 0:00:30]} Kf8 {[%emt 0:00:30]} 32. Ng6+ {[%emt 0:00:30]} Kg8 {[%emt 0:00:30]} 33. Ne7+ {[%emt 0:00:30]} Kh7 {[%emt 0:00:30]} 34. Rxe4 {[%emt 0:00:30]} f6 {[%emt 0:00:30]} 35. Rd1 {[%emt 0:00:30]} Ne5 {[%emt 0:00:30]} 36. Rxd8 {[%emt 0:00:30]} Rxd8 {[%emt 0:00:30]} 37. Rd4 {[%emt 0:00:30]} Rxd4 {[%emt 0:00:30]} 38. exd4 {[%emt 0:00:30]} Nc4 {[%emt 0:00:30]} 39. d5 {[%emt 0:00:30]} Nd6 {[%emt 0:00:30]} 40. Kf2 {[%emt 0:00:30]} g6 {[%emt 0:00:30]} 41. Ke3 {[%emt 0:30:30]} Kg7 {[%emt 0:30:30]} 42. Kd4 {[%emt 0:00:30]} Kf7 {[%emt 0:00:30]} 43. Nc6 {[%emt 0:00:30]} bxc6 {[%emt 0:00:30]} 44. dxc6 Ke6 {[%emt 0:00:30]} 45. Kc5 {[%emt 0:01:00]} f5 {[%emt 0:00:30]} 46. a4 {[%emt 0:00:30]} g5 {[%emt 0:00:30]} 47. b5 {[%emt 0:00:30]} axb5 {[%emt 0:00:30]} 48. axb5 {[%emt 0:00:30]} Ne4+ {[%emt 0:00:30]} 49. Kb6 {[%emt 0:00:30]} f4 {[%emt 0:00:30]} 50. Kc7 {[%emt 0:00:30]} g4 {[%emt 0:00:30]} 51. b6 {[%emt 0:00:30]} f3 {[%emt 0:00:30]} 52. gxf3 {[%emt 0:00:30]} gxf3 {[%emt 0:00:30]} 53. b7 {[%emt 0:00:30]} f2 {[%emt 0:00:30]} 54. b8=Q {[%emt 0:00:30]} f1=Q {[%emt 0:00:30]} 55. Qe8+ {[%emt 0:00:30]} Kd5 {[%emt 0:00:30]} 56. Qd7+ {[%emt 0:00:30]} Ke5 {[%emt 0:00:30]} 57. Qe7+ {[%emt 0:00:30]} Kd5 {[%emt 0:00:30]} 58. Qd7+ {[%emt 0:00:30]} Ke5 {[%emt 0:00:30]} 59. Qe7+ {[%emt 0:00:30]} Kd4 {[%emt 0:00:30]} 60. Kd8 {[%emt 0:00:30]} Qa6 {[%emt 0:00:30]} 61. c7 {[%emt 0:00:30]} Qb6 {[%emt 0:00:30]} 62. Qd7+ Ke5 {[%emt 0:00:30]} 63. Qe7+ {[%emt 0:01:00]} Kf5 {[%emt 0:00:30]} 64. Qh7+ {[%emt 0:00:30]} Ke5 {[%emt 0:00:30]} 65. Qe7+ {[%emt 0:00:30]} Kd5 {[%emt 0:00:30]} 66. Qf7+ {[%emt 0:00:30]} Ke5 {[%emt 0:00:30]} 67. Qe7+ {[%emt 0:00:30]} Kd5 {[%emt 0:00:30]} 68. Qf7+ {[%emt 0:00:30]} Kc6 {[%emt 0:00:30]} 69. Qe8+ {[%emt 0:00:30]} 1/2-1/2

[Event "2nd Serbian League-Vojvodina 2023"]
[Site "Novi Sad"]
[Date "2023.11.08"]
[Round "10.23"]
[White "Bojkovic, Slobodan"]
[Black "Mikheev, Stanislav"]
[Result "1-0"]
[ECO "B40"]
[WhiteElo "2031"]
[BlackElo "2288"]
[Annotator "RC"]
[PlyCount "79"]
[EventDate "2023.10.22"]
[EventType "team-tourn"]
[EventCountry "SRB"]
[SourceTitle "playchess.com"]
[Source "ChessBase"]
[SourceQuality "1"]
[TimeControl "40/5400+30:1800+30"]

1. e4 {[%emt 1:31:00]} e6 {[%emt 1:31:00]} 2. d3 {[%emt 0:00:30]} d5 {[%emt 0:00:30]} 3. Nd2 {[%emt 0:00:30]} c5 {[%emt 0:00:30]} 4. Ngf3 {[%emt 0:00:30]} Nc6 {[%emt 0:00:30]} 5. c3 {[%emt 0:00:30]} Nf6 {[%emt 0:00:30]} 6. e5 {[%emt 0:00:30]} Nd7 {[%emt 0:00:30]} 7. d4 {[%emt 0:00:30]} cxd4 {[%emt 0:00:30]} 8. cxd4 {[%emt 0:00:30]} f6 {[%emt 0:00:30]} 9. exf6 {[%emt 0:00:30]} Nxf6 {[%emt 0:00:30]} 10. a3 {[%emt 0:00:30]} Bd6 {[%emt 0:00:30]} 11. b4 {[%emt 0:00:30]} O-O {[%emt 0:00:30]} 12. b5 {[%emt 0:00:30]} Ne7 {[%emt 0:00:30]} 13. Bd3 {[%emt 0:00:30]} Qe8 {[%emt 0:00:30]} 14. Ne5 {[%emt 0:00:30]} Nf5 {[%emt 0:00:30]} 15. Bb2 {[%emt 0:00:30]} Bd7 {[%emt 0:00:30]} 16. Qe2 {[%emt 0:00:30]} Bc7 {[%emt 0:00:30]} 17. O-O {[%emt 0:00:30]} Bb6 {[%emt 0:00:30]} 18. Nb3 {[%emt 0:00:30]} Qe7 {[%emt 0:00:30]} 19. a4 {[%emt 0:00:30]} Bc7 {[%emt 0:00:30]} 20. Nc5 {[%emt 0:00:30]} Bc8 {[%emt 0:00:30]} 21. Rfe1 {[%emt 0:00:30]} b6 {[%emt 0:00:30]} 22. Nb3 {[%emt 0:00:30]} Bd6 {[%emt 0:00:30]} 23. a5 {[%emt 0:00:30]} bxa5 {[%emt 0:00:30]} 24. Nxa5 {[%emt 0:00:30]} Re8 {[%emt 0:00:30]} 25. Nac6 {[%emt 0:00:30]} Qb7 {[%emt 0:00:30]} 26. g4 {[%emt 0:00:30]} Ne7 {[%emt 0:00:30]} 27. f3 {[%emt 0:00:30]} Qb6 {[%emt 0:00:30]} 28. Kg2 {[%emt 0:00:30]} Nxc6 {[%emt 0:00:30]} 29. bxc6 {[%emt 0:00:30]} a5 {[%emt 0:00:30]} 30. Qc2 {[%emt 0:00:30]} Ba6 {[%emt 0:00:30]} 31. Ba3 {[%emt 0:00:30]} Bxa3 {[%emt 0:00:30]} 32. Rxa3 {[%emt 0:00:30]} Qb4 {[%emt 0:00:30]} 33. Rc3 {[%emt 0:00:30]} a4 {[%emt 0:00:30]} 34. g5 {[%emt 0:00:30]} Bxd3 {[%emt 0:00:30]} 35. Nxd3 {[%emt 0:00:30]} Qxd4 {[%emt 0:00:30]} 36. gxf6 {[%emt 0:00:30]} gxf6 {[%emt 0:00:30]} 37. c7 {[%emt 0:00:30]} Rac8 {[%emt 0:00:30]} 38. Kh1 {[%emt 0:00:30]} Re7 {[%emt 0:00:30]} 39. Ra1 {[%emt 0:00:30]} Qf4 {[%emt 0:00:30]} 40. Nxf4 {[%emt 0:00:30]} 1-0

[Event "2nd Serbian League-Vojvodina 2023"]
[Site "Novi Sad"]
[Date "2023.11.08"]
[Round "10.24"]
[White "Roganovic, Nebojsa"]
[Black "Skoko, Milan"]
[Result "1-0"]
[ECO "B33"]
[WhiteElo "2129"]
[BlackElo "2108"]
[Annotator "RC"]
[PlyCount "60"]
[EventDate "2023.10.22"]
[EventType "team-tourn"]
[EventCountry "SRB"]
[SourceTitle "playchess.com"]
[Source "ChessBase"]
[SourceQuality "1"]
[TimeControl "40/5400+30:1800+30"]

1. e4 {[%emt 0:03:37]} c5 {[%emt 0:00:09]} 2. Nf3 {[%emt 1:27:53]} Nc6 {[%emt 0:00:19]} 3. d4 {[%emt 0:00:30]} cxd4 {[%emt 0:00:13]} 4. Nxd4 {[%emt 0:00:30]} Nf6 {[%emt 0:00:08]} 5. Nc3 {[%emt 0:00:30]} e5 {[%emt 0:00:08]} 6. Ndb5 {[%emt 0:00:00]} d6 {[%emt 0:00:16]} 7. Bg5 {[%emt 0:01:00]} a6 {[%emt 0:00:08]} 8. Na3 {[%emt 0:00:00]} Be6 {[%emt 0:00:00]} 9. Nc4 {[%emt 0:00:00]} Rc8 {[%emt 0:00:19]} 10. Bxf6 {[%emt 0:00:00]} gxf6 {[%emt 1:33:50]} 11. Bd3 {[%emt 0:02:00]} Nb4 {[%emt 0:00:30]} 12. Ne3 {[%emt 0:00:30]} Bh6 {[%emt 0:00:30]} 13. Ned5 {[%emt 0:01:00]} Nxd5 {[%emt 0:00:00]} 14. Nxd5 {[%emt 0:00:00]} Bxd5 {[%emt 0:00:00]} 15. exd5 {[%emt 0:00:30]} Qa5+ {[%emt 0:01:00]} 16. c3 {[%emt 0:00:30]} Qxd5 {[%emt 0:01:30]} 17. O-O {[%emt 0:01:00]} Rc7 {[%emt 0:00:30]} 18. Qe2 Qe6 {[%emt 0:01:00]} 19. Qh5 {[%emt 0:00:00]} Bf8 {[%emt 0:01:30]} 20. c4 {[%emt 0:02:30]} Rg8 {[%emt 0:02:00]} 21. b3 {[%emt 0:03:00]} Qg4 {[%emt 0:00:00]} 22. Qxg4 {[%emt 0:00:30]} Rxg4 {[%emt 0:03:00]} 23. Bxh7 {[%emt 0:01:00]} Rd4 {[%emt 0:03:30]} 24. Rfd1 {[%emt 0:01:30]} Rh4 {[%emt 0:04:00]} 25. Bf5 {[%emt 0:02:00]} Rf4 {[%emt 0:04:30]} 26. g4 {[%emt 0:02:30]} Ke7 {[%emt 0:00:00]} 27. Rd5 {[%emt 0:00:00]} Rc5 {[%emt 0:00:00]} 28. Rad1 {[%emt 0:01:00]} Rxd5 {[%emt 0:01:00]} 29. Rxd5 {[%emt 0:01:30]} Kd8 {[%emt 0:01:30]} 30. Kg2 {[%emt 0:02:00]} Kc7 {[%emt 0:02:00]} 1-0

[Event "2nd Serbian League-Vojvodina 2023"]
[Site "Novi Sad"]
[Date "2023.11.09"]
[Round "11.1"]
[White "Nevednichy, Vladislav"]
[Black "Georgiev, Krum"]
[Result "1/2-1/2"]
[ECO "B52"]
[WhiteElo "2447"]
[BlackElo "2294"]
[Annotator "RC"]
[PlyCount "21"]
[EventDate "2023.10.22"]
[EventType "team-tourn"]
[EventCountry "SRB"]
[SourceTitle "playchess.com"]
[Source "ChessBase"]
[SourceQuality "1"]
[TimeControl "40/5400+30:1800+30"]

1. e4 {[%emt 0:00:03]} c5 {[%emt 0:00:34]} 2. Nf3 {[%emt 0:00:07]} d6 {[%emt 0:00:13]} 3. Bb5+ {[%emt 0:02:40]} Bd7 {[%emt 0:00:20]} 4. c4 {[%emt 0:00:06]} e5 {[%emt 0:00:38]} 5. Nc3 {[%emt 0:01:08]} Nc6 {[%emt 0:01:32]} 6. d3 {[%emt 0:00:32]} Nge7 {[%emt 0:02:50]} 7. a3 {[%emt 0:01:28]} Ng6 {[%emt 0:08:35]} 8. Nd5 {[%emt 0:00:28]} Be7 {[%emt 0:09:53]} 9. b4 {[%emt 0:01:06]} O-O {[%emt 0:01:18]} 10. bxc5 {[%emt 0:03:17]} dxc5 {[%emt 0:00:25]} 11. Bxc6 {[%emt 0:00:55]} 1/2-1/2

[Event "2nd Serbian League-Vojvodina 2023"]
[Site "Novi Sad"]
[Date "2023.11.09"]
[Round "11.2"]
[White "Mijatovic, Dusan"]
[Black "Stoleriu, George"]
[Result "1/2-1/2"]
[ECO "C18"]
[WhiteElo "2139"]
[BlackElo "2400"]
[Annotator "RC"]
[PlyCount "23"]
[EventDate "2023.10.22"]
[EventType "team-tourn"]
[EventCountry "SRB"]
[SourceTitle "playchess.com"]
[Source "ChessBase"]
[SourceQuality "1"]
[TimeControl "40/5400+30:1800+30"]

1. e4 {[%emt 0:00:04]} e6 {[%emt 0:00:08]} 2. d4 {[%emt 0:00:05]} d5 {[%emt 0:00:04]} 3. Nc3 {[%emt 0:00:08]} Bb4 {[%emt 0:00:03]} 4. e5 {[%emt 0:00:06]} c5 {[%emt 0:00:03]} 5. a3 {[%emt 0:00:08]} Bxc3+ {[%emt 0:00:03]} 6. bxc3 {[%emt 0:00:09]} Qc7 {[%emt 0:00:01]} 7. Qg4 {[%emt 0:00:16]} f6 {[%emt 0:00:29]} 8. Bb5+ {[%emt 0:00:15]} Kf8 {[%emt 0:02:49]} 9. Qg3 {[%emt 0:00:06]} Bd7 {[%emt 0:15:56]} 10. a4 {[%emt 0:05:20]} cxd4 {[%emt 0:15:18]} 11. cxd4 {[%emt 0:12:10]} a6 {[%emt 0:01:59]} 12. Be2 {[%emt 0:05:19]} 1/2-1/2

[Event "2nd Serbian League-Vojvodina 2023"]
[Site "Novi Sad"]
[Date "2023.11.09"]
[Round "11.4"]
[White "Bojkovic, Slobodan"]
[Black "Kovacevic, Sinisa"]
[Result "1/2-1/2"]
[ECO "D00"]
[WhiteElo "2031"]
[BlackElo "2240"]
[Annotator "RC"]
[PlyCount "26"]
[EventDate "2023.10.22"]
[EventType "team-tourn"]
[EventCountry "SRB"]
[SourceTitle "playchess.com"]
[Source "ChessBase"]
[SourceQuality "1"]
[TimeControl "40/5400+30:1800+30"]

1. d4 {[%emt 0:02:34]} d5 {[%emt 0:00:12]} 2. a3 {[%emt 0:01:21]} Nf6 {[%emt 0:00:18]} 3. Nf3 {[%emt 0:00:23]} Bf5 {[%emt 0:01:57]} 4. e3 {[%emt 0:04:15]} c6 {[%emt 0:01:13]} 5. Bd3 {[%emt 0:00:48]} Bxd3 {[%emt 0:00:18]} 6. Qxd3 {[%emt 0:00:38]} Nbd7 {[%emt 0:00:12]} 7. Nc3 {[%emt 0:03:20]} Qc7 {[%emt 0:03:12]} 8. e4 {[%emt 0:00:09]} dxe4 {[%emt 0:02:12]} 9. Nxe4 {[%emt 0:00:03]} Nxe4 {[%emt 0:00:56]} 10. Qxe4 {[%emt 1:21:59]} Nf6 {[%emt 0:00:45]} 11. Qf4 {[%emt 0:00:00]} Qxf4 {[%emt 0:02:57]} 12. Bxf4 {[%emt 0:00:00]} e6 {[%emt 0:00:12]} 13. O-O {[%emt 0:00:00]} Rd8 {[%emt 0:01:33]} 1/2-1/2

[Event "2nd Serbian League-Vojvodina 2023"]
[Site "Novi Sad"]
[Date "2023.11.09"]
[Round "11.6"]
[White "Subic, Slobodan"]
[Black "Zolotic, Zoran"]
[Result "1/2-1/2"]
[ECO "B07"]
[WhiteElo "1870"]
[BlackElo "2193"]
[Annotator "RC"]
[PlyCount "34"]
[EventDate "2023.10.22"]
[EventType "team-tourn"]
[EventCountry "SRB"]
[SourceTitle "playchess.com"]
[Source "ChessBase"]
[SourceQuality "1"]
[TimeControl "40/5400+30:1800+30"]

1. d4 {[%emt 0:05:04]} g6 {[%emt 0:00:15]} 2. Nc3 {[%emt 0:01:14]} Bg7 {[%emt 0:00:09]} 3. e4 {[%emt 0:00:22]} d6 {[%emt 0:00:09]} 4. Be3 {[%emt 0:00:17]} Nf6 {[%emt 0:00:13]} 5. f3 {[%emt 0:00:14]} O-O {[%emt 0:00:34]} 6. Qd2 {[%emt 0:00:14]} Re8 {[%emt 0:00:09]} 7. Bh6 {[%emt 0:00:37]} Bh8 {[%emt 0:00:24]} 8. g4 {[%emt 0:00:16]} c5 {[%emt 0:00:25]} 9. d5 {[%emt 0:02:22]} Qa5 {[%emt 0:00:19]} 10. h4 {[%emt 0:00:54]} a6 {[%emt 0:00:50]} 11. h5 {[%emt 0:01:02]} Nbd7 {[%emt 0:00:16]} 12. hxg6 {[%emt 0:02:59]} hxg6 {[%emt 0:00:11]} 13. Qh2 {[%emt 0:00:56]} e6 {[%emt 0:11:26]} 14. Bd2 {[%emt 0:01:57]} Bg7 {[%emt 0:00:15]} 15. Bh6 {[%emt 0:02:46]} Bh8 {[%emt 0:00:11]} 16. Bd2 {[%emt 1:17:16]} Bg7 {[%emt 1:22:44]} 17. Bh6 {[%emt 0:00:30]} Nxg4 {[%emt 0:00:30]} 1/2-1/2

[Event "2nd Serbian League-Vojvodina 2023"]
[Site "Novi Sad"]
[Date "2023.11.09"]
[Round "11.8"]
[White "Jocev, Milan"]
[Black "Varga, Zoltan"]
[Result "1/2-1/2"]
[ECO "E12"]
[WhiteElo "2338"]
[BlackElo "2356"]
[Annotator "RC"]
[PlyCount "21"]
[EventDate "2023.10.22"]
[EventType "team-tourn"]
[EventCountry "SRB"]
[SourceTitle "playchess.com"]
[Source "ChessBase"]
[SourceQuality "1"]
[TimeControl "40/5400+30:1800+30"]

1. d4 {[%emt 0:00:03]} Nf6 {[%emt 0:00:40]} 2. Nf3 {[%emt 0:00:09]} e6 {[%emt 0:00:05]} 3. c4 {[%emt 0:00:22]} b6 {[%emt 0:00:09]} 4. a3 {[%emt 0:00:20]} Bb7 {[%emt 0:00:21]} 5. Nc3 {[%emt 0:00:07]} Ne4 {[%emt 0:00:03]} 6. Nxe4 {[%emt 0:00:16]} Bxe4 {[%emt 0:00:05]} 7. e3 {[%emt 0:00:17]} Be7 {[%emt 0:00:11]} 8. Bd3 {[%emt 0:00:10]} Bxd3 {[%emt 0:00:08]} 9. Qxd3 {[%emt 0:00:06]} d5 {[%emt 0:00:07]} 10. O-O {[%emt 0:00:10]} O-O {[%emt 0:00:12]} 11. cxd5 {[%emt 0:00:08]} 1/2-1/2

[Event "2nd Serbian League-Vojvodina 2023"]
[Site "Novi Sad"]
[Date "2023.11.09"]
[Round "11.10"]
[White "Radlovacki, Jovan"]
[Black "Levnajic, Pavle"]
[Result "1/2-1/2"]
[ECO "C90"]
[WhiteElo "2268"]
[BlackElo "2160"]
[Annotator "RC"]
[PlyCount "22"]
[EventDate "2023.10.22"]
[EventType "team-tourn"]
[EventCountry "SRB"]
[SourceTitle "playchess.com"]
[Source "ChessBase"]
[SourceQuality "1"]
[TimeControl "40/5400+30:1800+30"]

1. e4 {[%emt 0:00:02]} e5 {[%emt 0:05:22]} 2. Nf3 {[%emt 0:00:16]} Nc6 {[%emt 0:00:08]} 3. Bb5 {[%emt 0:00:03]} a6 {[%emt 0:00:02]} 4. Ba4 {[%emt 0:00:04]} Nf6 {[%emt 0:00:04]} 5. O-O {[%emt 0:00:04]} Be7 {[%emt 0:00:12]} 6. Re1 {[%emt 0:00:06]} b5 {[%emt 0:00:03]} 7. Bb3 {[%emt 0:00:04]} O-O {[%emt 0:00:03]} 8. d3 {[%emt 0:00:06]} d6 {[%emt 0:00:05]} 9. c3 {[%emt 0:00:06]} Bb7 {[%emt 0:00:07]} 10. Nbd2 {[%emt 0:00:04]} h6 {[%emt 0:00:05]} 11. Nf1 {[%emt 0:00:05]} Re8 {[%emt 1:29:49]} 1/2-1/2